bitfinex-derivatives/quotes_SOLF0:USTF0_20241218
["timestamp","ask_amount","ask_price","bid_price","bid_amount"]
[1734551308675,5.62997293,213.79,213.62,33.00519733]
[1734551308876,5.62997293,213.79,213.63,4.62]
[1734551309078,5.62997293,213.79,213.66,33.00519733]
[1734551309272,2.3398,213.79,213.72,2.3405]
[1734551309580,1.688,213.81,213.67,3.4927]
[1734551309882,2.3402,213.75,213.68,2.3409]
[1734551310186,38.56458778,213.8,213.67,3.4927]
[1734551310382,2.34,213.77,213.71,2.3405]
[1734551310573,33.00519733,213.86,213.67,3.4927]
[1734551310773,33.00519733,213.9,213.74,33.00519733]
[1734551310973,5.55377206,213.88,213.74,2.3402]
[1734551311179,33.00519733,213.86,213.74,2.3402]
[1734551311380,33.00519733,213.86,213.67,9.14704113]
[1734551311681,5.55377206,213.88,213.67,9.14704113]
[1734551311682,33.00519733,213.82,213.67,9.14704113]
[1734551311884,1.7525,213.81,213.67,9.14704113]
[1734551312085,33.00519733,213.78,213.56,7.3323137]
[1734551312277,33.00519733,213.74,213.57,3.4218]
[1734551312485,37.62519733,213.74,213.57,3.4218]
[1734551313081,2.3418,213.61,213.57,3.4218]
[1734551313282,33.00519733,213.7,213.52,33.00519733]
[1734551313475,33.00519733,213.7,213.48,33.00519733]
[1734551313476,3.4235,213.69,213.48,33.00519733]
[1734551313680,2.3421,213.58,213.51,2.3427]
[1734551313880,4.62,213.66,213.5,5.55464428]
[1734551314078,37.62519733,213.66,213.44,33.00519733]
[1734551314286,33.00519733,213.62,213.46,5.48606149]
[1734551314680,2.3425,213.54,213.46,7.82946149]
[1734551314881,33.00519733,213.62,213.46,7.82946149]
[1734551315083,33.00519733,213.58,213.28,4.682]
[1734551315286,6.2729,213.57,213.38,33.00519733]
[1734551315487,6.2729,213.57,213.38,38.60762471]
[1734551315682,2.3442,213.39,213.27,2.3453]
[1734551315879,33.00519733,213.44,213.25,33.00519733]
[1734551316079,33.00519733,213.44,213.22,33.00519733]
[1734551316287,33.00519733,213.39,213.22,5.68296384]
[1734551316788,2.3456,213.26,213.15,2.3467]
[1734551316989,33.00519733,213.39,213.02,4.682]
[1734551317290,33.00519733,213.25,213.05,33.00519733]
[1734551317485,2.3457,213.26,213.1,5.66494949]
[1734551317690,33.00519733,213.27,213.1,5.66494949]
[1734551317987,2.345,213.31,213.17,2.3465]
[1734551318190,5.64468335,213.34,213.18,1.6685]
[1734551318888,5.64468335,213.34,213.18,34.67369733]
[1734551319081,6.5403,213.43,213.27,2.3454]
[1734551319284,5.56865095,213.36,213.22,33.00519733]
[1734551319685,5.56865095,213.36,213.18,34.67369733]
[1734551319884,38.57384828,213.36,213.18,1.6685]
[1734551320086,33.00519733,213.32,213.18,1.6685]
[1734551320382,37.90519733,213.32,213.1,5.66494949]
[1734551320589,38.57384828,213.36,213.18,33.00519733]
[1734551320987,33.00519733,213.5,213.27,33.00519733]
[1734551321184,1.6828,213.49,213.28,6.5952]
[1734551321384,5.67223281,213.4,213.28,6.5952]
[1734551321596,5.67223281,213.4,213.28,1.6752]
[1734551321888,5.639582,213.41,213.31,33.00519733]
[1734551322090,5.639582,213.41,213.29,5.16]
[1734551322492,33.00519733,213.53,213.35,33.00519733]
[1734551322892,5.75422275,213.46,213.35,35.34959733]
[1734551323193,5.75422275,213.46,213.35,33.00519733]
[1734551323391,2.3426,213.53,213.35,33.00519733]
[1734551323589,1.6797,213.55,213.41,2.3438]
[1734551323789,1.6797,213.55,213.39,33.00519733]
[1734551323993,5.51279864,213.5,213.43,2.3436]
[1734551324187,5.51279864,213.5,213.4,1.7608]
[1734551324592,2.3433,213.47,213.36,2.3443]
[1734551324897,5.51279864,213.5,213.32,1.7608]
[1734551325101,5.51279864,213.5,213.35,33.00519733]
[1734551325290,1254.10629123,215.85,213.39,33.00519733]
[1734551325291,5.16,213.63,213.39,33.00519733]
[1734551325591,1.6779,213.61,213.43,33.00519733]
[1734551325793,1.6779,213.61,213.44,1.6019]
[1734551325992,5.55634027,213.55,213.48,2.343]
[1734551326494,33.00519733,213.66,213.47,33.00519733]
[1734551326690,252.4015147,213.78,213.51,33.00519733]
[1734551326691,5.73015169,213.6,213.51,33.00519733]
[1734551326901,5.73015169,213.6,213.55,33.00519733]
[1734551327199,2.3406,213.71,213.61,2.3416]
[1734551327499,5.57490266,213.69,213.56,1.6019]
[1734551327697,2.3409,213.68,213.58,2.3419]
[1734551327996,5.57490266,213.69,213.56,1.6019]
[1734551328796,5.57490266,213.69,213.55,5.16]
[1734551328999,2.3414,213.64,213.52,2.3427]
[1734551329201,2.3414,213.64,213.51,33.00519733]
[1734551329402,5.57490266,213.69,213.51,33.00519733]
[1734551329700,33.00519733,213.62,213.43,34.63489733]
[1734551329899,1.6003,213.61,213.43,34.63489733]
[1734551330195,1.6003,213.61,213.47,33.00519733]
[1734551330507,5.57490266,213.69,213.55,33.00519733]
[1734551331098,5.57490266,213.69,213.61,2.3417]
[1734551331299,5.57490266,213.69,213.55,33.00519733]
[1734551331494,33.00519733,213.74,213.55,33.00519733]
[1734551331700,1.6003,213.78,213.59,33.00519733]
[1734551331999,108.90540773,213.84,213.63,33.00519733]
[1734551332195,108.90540773,213.84,213.64,8.8639]
[1734551332407,5.69786935,213.76,213.64,8.8639]
[1734551332704,33.00519733,213.75,213.55,38.55897737]
[1734551333002,34.61929733,213.75,213.56,1.6713]
[1734551333208,2.3409,213.69,213.6,2.3418]
[1734551333410,34.61929733,213.75,213.56,1.6713]
[1734551333600,33.00519733,213.71,213.52,2.0326]
[1734551333804,33.00519733,213.73,213.52,2.0326]
[1734551334009,33.00519733,213.73,213.55,33.00519733]
[1734551334600,33.00519733,213.73,213.39,33.00519733]
[1734551334601,33.00519733,213.6,213.39,33.00519733]
[1734551334812,2.3427,213.52,213.41,2.3438]
[1734551335005,5.16,213.55,213.39,33.00519733]
[1734551335308,7.1895,213.55,213.39,33.00519733]
[1734551335511,7.1895,213.55,213.4,5.51666152]
[1734551335706,7.1895,213.55,213.41,2.2313]
[1734551336209,7.1895,213.55,213.43,33.00519733]
[1734551336609,9.5319,213.55,213.46,2.3433]
[1734551337005,7.1895,213.55,213.43,33.00519733]
[1734551337213,2.3428,213.51,213.42,2.3438]
[1734551337399,7.1895,213.55,213.41,2.2313]
[1734551337605,33.00519733,213.54,213.35,33.00519733]
[1734551337805,2.3431,213.49,213.37,5.65222952]
[1734551338010,5.16,213.53,213.39,33.00519733]
[1734551338204,2.0295,213.55,213.47,2.3432]
[1734551338205,2.3424,213.55,213.47,2.3432]
[1734551338519,2.3424,213.55,213.43,33.00519733]
[1734551338807,2.3424,213.55,213.45,2.3434]
[1734551339004,5.53128711,213.56,213.43,33.00519733]
[1734551339605,2.3421,213.58,213.49,2.343]
[1734551339807,2.0774,213.6,213.43,33.00519733]
[1734551340411,5.53808089,213.61,213.47,33.00519733]
[1734551340608,5.53808089,213.61,213.43,33.00519733]
[1734551340803,33.00519733,213.58,213.41,2.1763]
[1734551341207,2.343,213.5,213.42,2.3438]
[1734551341408,2.343,213.5,213.37,5.65222952]
[1734551341409,33.00519733,213.54,213.37,5.65222952]
[1734551341608,33.00519733,213.54,213.39,33.00519733]
[1734551341816,7.2516,213.6,213.43,33.00519733]
[1734551342017,7.2516,213.6,213.44,2.1239]
[1734551342712,33.00519733,213.58,213.44,2.1239]
[1734551342909,2.3432,213.48,213.41,2.3439]
[1734551343413,33.00519733,213.5,213.34,2.2423]
[1734551343612,2.3441,213.4,213.34,2.2423]
[1734551343917,2.23,213.49,213.29,33.00519733]
[1734551344216,33.00519733,213.54,213.33,33.00519733]
[1734551344411,2.23,213.57,213.37,33.00519733]
[1734551344611,2.3425,213.55,213.41,33.00519733]
[1734551344808,2.23,213.57,213.42,2.2423]
[1734551345013,2.3425,213.54,213.45,2.3434]
[1734551345214,38.52920613,213.54,213.37,33.00519733]
[1734551345415,33.00519733,213.5,213.31,2.2423]
[1734551345614,2.3444,213.37,213.31,2.2423]
[1734551345810,33.00519733,213.46,213.31,2.2423]
[1734551346009,7.39,213.49,213.33,33.00519733]
[1734551346213,5.5240088,213.54,213.33,33.00519733]
[1734551346414,5.5240088,213.54,213.42,33.00519733]
[1734551346711,2.3419,213.6,213.46,33.00519733]
[1734551346919,5.58138649,213.59,213.38,5.72539324]
[1734551347116,33.00519733,213.56,213.4,33.00519733]
[1734551347313,7.82118649,213.59,213.39,2.1351]
[1734551347314,54.27677,213.51,213.39,2.1351]
[1734551347509,54.27677,213.51,213.32,33.00519733]
[1734551347714,54.27677,213.51,213.36,33.00519733]
[1734551347910,54.27677,213.51,213.33,2.1351]
[1734551348116,33.00519733,213.48,213.33,2.1351]
[1734551348317,54.27677,213.51,213.33,2.1351]
[1734551348717,33.00519733,213.48,213.33,2.1351]
[1734551348916,33.00519733,213.44,213.24,33.00519733]
[1734551349122,33.00519733,213.44,213.25,2.231]
[1734551349318,33.00519733,213.44,213.27,2.3454]
[1734551349521,33.00519733,213.44,213.25,2.231]
[1734551349815,2.3454,213.28,213.2,2.3462]
[1734551350015,38.53235834,213.4,213.21,33.00519733]
[1734551350822,5.52716101,213.4,213.29,33.00519733]
[1734551351521,2.2398,213.47,213.29,33.00519733]
[1734551351718,2.0294,213.53,213.34,33.00519733]
[1734551351919,2.0294,213.53,213.38,33.00519733]
[1734551352119,2.3433,213.47,213.39,2.344]
[1734551352320,2.1813,213.56,213.38,33.00519733]
[1734551352517,2.2241,213.59,213.42,33.00519733]
[1734551352919,5.70071089,213.54,213.43,2.2093]
[1734551353515,2.2241,213.59,213.46,33.00519733]
[1734551353918,7.95914913,213.59,213.49,2.343]
[1734551354121,7.95914913,213.59,213.44,9.3963]
[1734551354317,33.00519733,213.56,213.38,33.00519733]
[1734551354519,5.16,213.5,213.31,4.2363]
[1734551354827,33.00519733,213.48,213.32,5.54820168]
[1734551355027,9.3029,213.5,213.32,5.54820168]
[1734551355028,2.1186,213.49,213.32,5.54820168]
[1734551355419,5.49923206,213.48,213.32,5.54820168]
[1734551355918,5.49923206,213.48,213.3,2.2093]
[1734551355919,33.00519733,213.47,213.3,2.2093]
[1734551356120,33.00519733,213.47,213.25,38.16519733]
[1734551356121,5.16,213.46,213.25,38.16519733]
[1734551356326,2.3443,213.38,213.3,2.3451]
[1734551356619,5.16,213.46,213.25,38.16519733]
[1734551356827,33.00519733,213.43,213.26,2.3455]
[1734551357025,33.00519733,213.43,213.25,38.16519733]
[1734551357214,2.3438,213.43,213.33,35.34989733]
[1734551357423,5.49923206,213.48,213.37,33.00519733]
[1734551357725,2.1186,213.49,213.37,33.00519733]
[1734551358126,54.27677,213.51,213.37,33.00519733]
[1734551358515,54.27677,213.51,213.41,33.00519733]
[1734551358725,54.27677,213.51,213.37,33.00519733]
[1734551359029,54.27677,213.51,213.5,35.34809733]
[1734551359030,41.67187,213.51,213.5,35.34809733]
[1734551359325,34.24857,213.51,213.5,35.34809733]
[1734551359528,33.28567,213.51,213.5,35.34809733]
[1734551359725,33.28567,213.51,213.48,5.16]
[1734551359923,33.28567,213.51,213.46,33.00519733]
[1734551360927,33.28567,213.51,213.5,33.00519733]
[1734551361324,33.28567,213.51,213.41,5.16]
[1734551361325,33.28567,213.51,213.46,33.00519733]
[1734551361520,33.28567,213.51,213.4,33.00519733]
[1734551362423,2.343,213.49,213.4,35.34909733]
[1734551362624,33.28567,213.51,213.4,33.00519733]
[1734551362824,33.28567,213.51,213.32,5.16]
[1734551363920,38.90313043,213.51,213.38,33.00519733]
[1734551364121,38.90313043,213.51,213.44,2.3435]
[1734551364122,33.28567,213.51,213.44,2.3435]
[1734551364326,33.28567,213.51,213.42,33.00519733]
[1734551365528,33.28567,213.51,213.46,33.00519733]
[1734551366025,33.28567,213.51,213.5,33.00519733]
[1734551366424,33.28567,213.51,213.5,35.34809733]
[1734551366927,4.2235,213.66,213.5,33.00519733]
[1734551367129,4.2235,213.66,213.55,33.00519733]
[1734551367832,33.00519733,213.74,213.55,33.00519733]
[1734551368021,4.3984,213.76,213.59,33.00519733]
[1734551368222,5.64819318,213.73,213.59,33.00519733]
[1734551368624,5.64819318,213.73,213.55,33.00519733]
[1734551369229,2.3409,213.69,213.59,33.00519733]
[1734551369729,2.3405,213.73,213.66,2.3411]
[1734551369929,4.3984,213.76,213.63,33.00519733]
[1734551370328,4.3984,213.76,213.59,33.00519733]
[1734551371233,2.1044,213.75,213.59,33.00519733]
[1734551371534,35.10959733,213.75,213.59,33.00519733]
[1734551371829,2.3407,213.7,213.64,2.3414]
[1734551372029,2.1044,213.75,213.59,33.00519733]
[1734551372431,2.1044,213.75,213.63,33.00519733]
[1734551372630,114.06540773,213.84,213.67,33.00519733]
[1734551372825,6.3673,213.83,213.67,33.00519733]
[1734551373028,6.3673,213.83,213.64,5.16]
[1734551373029,6.3673,213.83,213.71,33.00519733]
[1734551373231,189.301136,213.89,213.75,33.00519733]
[1734551373637,194.89352141,213.89,213.75,33.00519733]
[1734551373932,5.59238541,213.89,213.75,33.00519733]
[1734551374530,2.3389,213.87,213.75,33.00519733]
[1734551374735,5.59238541,213.89,213.75,33.00519733]
[1734551375230,5.59238541,213.89,213.71,33.00519733]
[1734551375730,5.14,213.88,213.71,33.00519733]
[1734551375926,33.00519733,213.87,213.71,33.00519733]
[1734551376128,33.00519733,213.87,213.67,35.34629733]
[1734551376432,38.14519733,213.88,213.67,33.00519733]
[1734551376732,33.00519733,213.84,213.63,38.14519733]
[1734551376930,5.14,213.88,213.63,33.00519733]
[1734551376931,33.00519733,213.8,213.63,33.00519733]
[1734551377135,11.7066,213.79,213.63,33.00519733]
[1734551377535,11.7066,213.79,213.59,38.62029041]
[1734551377731,33.00519733,213.76,213.55,33.00519733]
[1734551377930,33.00519733,213.72,213.51,33.00519733]
[1734551378230,2.3425,213.55,213.47,33.00519733]
[1734551378432,5.14,213.63,213.43,33.00519733]
[1734551378629,33.00519733,213.6,213.43,33.00519733]
[1734551378832,5.14,213.59,213.43,33.00519733]
[1734551379030,6.5666,213.62,213.43,33.00519733]
[1734551379226,2.3429,213.52,213.43,41.05966168]
[1734551379431,6.5666,213.62,213.43,38.71586168]
[1734551379828,5.70391814,213.59,213.47,33.00519733]
[1734551380336,2.3422,213.58,213.49,2.3431]
[1734551380535,6.5666,213.62,213.47,33.00519733]
[1734551380730,5.5395,213.6,213.47,33.00519733]
[1734551381639,2.3425,213.56,213.47,33.00519733]
[1734551381835,5.5395,213.6,213.43,5.71066435]
[1734551382031,5.5395,213.6,213.4,33.00519733]
[1734551382437,5.5395,213.6,213.41,5.632875]
[1734551382637,5.5395,213.6,213.46,33.00519733]
[1734551382837,4.3639,213.62,213.5,33.00519733]
[1734551383534,6.7057,213.62,213.56,2.3424]
[1734551383730,2.2528,213.69,213.58,33.00519733]
[1734551383932,5.61269813,213.68,213.54,33.00519733]
[1734551384135,2.3415,213.65,213.54,33.00519733]
[1734551384433,5.61269813,213.68,213.54,33.00519733]
[1734551384629,7.77519813,213.68,213.54,33.00519733]
[1734551385037,7.77519813,213.68,213.53,5.64081786]
[1734551385237,7.77519813,213.68,213.5,33.00519733]
[1734551385438,7.77519813,213.68,213.54,33.00519733]
[1734551385638,2.3418,213.62,213.55,2.3424]
[1734551385845,7.77519813,213.68,213.54,33.00519733]
[1734551386138,2.3414,213.66,213.59,2.342]
[1734551386337,7.77519813,213.68,213.59,2.342]
[1734551386533,7.77519813,213.68,213.54,33.00519733]
[1734551386934,7.77519813,213.68,213.5,39.08519733]
[1734551387532,33.00519733,213.66,213.5,39.08519733]
[1734551387738,33.00519733,213.63,213.42,33.00519733]
[1734551388239,7.77519813,213.68,213.5,33.00519733]
[1734551389036,7.77519813,213.68,213.54,33.00519733]
[1734551389538,2.3414,213.65,213.54,33.00519733]
[1734551389942,2.1625,213.68,213.58,33.00519733]
[1734551390240,2.3413,213.66,213.58,33.00519733]
[1734551390436,2.0637,213.72,213.62,33.00519733]
[1734551391345,4.3313,213.8,213.66,33.00519733]
[1734551391639,4.4925,213.8,213.7,33.00519733]
[1734551391835,2.1527,213.8,213.7,33.00519733]
[1734551392238,4.2352,213.9,213.74,33.00519733]
[1734551392547,2.0967,213.88,213.74,33.00519733]
[1734551392837,4.2352,213.9,213.78,33.00519733]
[1734551392838,2.123,213.9,213.78,33.00519733]
[1734551393138,2.0967,213.97,213.68,53.54]
[1734551393341,7.68870505,213.97,213.8,33.00519733]
[1734551393742,2.3384,213.93,213.84,2.3393]
[1734551394041,7.68870505,213.97,213.81,6.08]
[1734551394343,2.3383,213.94,213.81,6.08]
[1734551394643,7.68870505,213.97,213.81,6.08]
[1734551394939,2.0967,213.97,213.84,33.00519733]
[1734551395840,33.00519733,214.07,213.88,33.00519733]
[1734551396032,6.2573,214.06,213.92,33.00519733]
[1734551396437,2.3373,214.03,213.93,2.3383]
[1734551396637,6.2573,214.06,213.93,2.3383]
[1734551396838,6.2573,214.06,213.88,33.00519733]
[1734551397038,6.2573,214.06,213.89,5.67266519]
[1734551398041,6.2573,214.06,213.88,33.00519733]
[1734551398240,2.3375,214.01,213.9,2.3387]
[1734551398440,6.2573,214.06,213.9,2.3387]
[1734551398636,33.00519733,214.03,213.84,33.00519733]
[1734551399038,6.2573,214.06,213.88,33.00519733]
[1734551400543,6.2573,214.06,213.97,2.3379]
[1734551400745,6.2573,214.06,213.88,33.00519733]
[1734551400942,6.2573,214.06,213.86,5.65301911]
[1734551401645,6.2573,214.06,213.91,33.00519733]
[1734551401844,6.2573,214.06,213.95,33.00519733]
[1734551401845,4.1239,214.06,213.95,33.00519733]
[1734551402048,4.1239,214.06,214.02,2.3374]
[1734551402252,2.3366,214.1,214.02,2.3374]
[1734551402544,2.3366,214.1,213.95,33.00519733]
[1734551402748,2.3366,214.09,213.95,33.00519733]
[1734551403039,5.54602421,214.12,213.99,33.00519733]
[1734551403245,5.54602421,214.12,213.95,33.00519733]
[1734551403446,33.00519733,214.08,213.87,53.5]
[1734551403638,33.00519733,214.08,213.91,2.3385]
[1734551403841,332.80660457,214.27,214.02,33.00519733]
[1734551404041,2.0596,214.22,214.06,33.00519733]
[1734551404240,5.58274757,214.19,214.06,33.00519733]
[1734551404642,2.0596,214.22,214.02,6.06]
[1734551404643,2.0596,214.22,214.1,33.00519733]
[1734551404841,2.0596,214.22,214.14,33.00519733]
[1734551405145,2.1612,214.23,214.14,33.00519733]
[1734551405646,2.1612,214.23,214.1,33.00519733]
[1734551405846,2.1612,214.23,214.06,5.59228689]
[1734551405847,2.1612,214.23,214.14,33.00519733]
[1734551406444,2.0596,214.27,214.18,33.00519733]
[1734551407153,2.1623,214.31,214.22,33.00519733]
[1734551407448,1.9952,214.33,214.22,33.00519733]
[1734551407640,1.9952,214.33,214.27,2.3345]
[1734551407843,2.1406,214.37,214.26,33.00519733]
[1734551408549,2.1406,214.37,214.22,39.06519733]
[1734551408750,2.3341,214.33,214.22,39.06519733]
[1734551408953,4.0753,214.44,214.26,33.00519733]
[1734551409251,4.0753,214.44,214.35,33.00519733]
[1734551409653,39.06519733,214.54,214.35,33.00519733]
[1734551409848,5.9559,214.53,214.35,33.00519733]
[1734551410248,33.00519733,214.5,214.32,6.06]
[1734551410445,5.54527569,214.48,214.32,33.00519733]
[1734551410643,33.00519733,214.46,214.28,33.00519733]
[1734551410853,2.3332,214.41,214.28,33.00519733]
[1734551411050,5.9559,214.4,214.24,33.00519733]
[1734551411449,2.3344,214.3,214.24,33.00519733]
[1734551411750,2.3344,214.3,214.06,33.00519733]
[1734551411751,33.00519733,214.34,214.16,33.00519733]
[1734551411951,6.06,214.33,214.16,33.00519733]
[1734551412349,33.00519733,214.39,214.16,33.00519733]
[1734551412350,5.50941658,214.29,214.16,33.00519733]
[1734551412854,5.50941658,214.29,214.2,35.34059733]
[1734551413053,5.50941658,214.29,214.2,33.00519733]
[1734551413347,5.50370783,214.36,214.28,33.00519733]
[1734551413547,3.9897,214.4,214.32,33.00519733]
[1734551413754,33.00519733,214.51,214.31,2.3342]
[1734551413950,4.1107,214.5,214.28,33.00519733]
[1734551414153,4.1107,214.5,214.32,33.00519733]
[1734551414353,5.50651126,214.42,214.28,33.00519733]
[1734551414759,2.334,214.33,214.28,33.00519733]
[1734551414950,33.00519733,214.38,214.2,33.00519733]
[1734551415144,6.0,214.39,214.22,5.5048292]
[1734551415351,2.3343,214.3,214.23,2.335]
[1734551415653,33.00519733,214.38,214.2,33.00519733]
[1734551415853,4.103,214.37,214.2,33.00519733]
[1734551416645,4.103,214.37,214.24,33.00519733]
[1734551416851,2.0453,214.41,214.24,33.00519733]
[1734551418047,2.3343,214.3,214.24,33.00519733]
[1734551418352,6.0,214.39,214.2,33.00519733]
[1734551418552,33.00519733,214.38,214.2,33.00519733]
[1734551418953,6.0,214.39,214.2,33.00519733]
[1734551419256,6.0,214.39,214.27,2.3345]
[1734551419654,2.0453,214.41,214.24,33.00519733]
[1734551420247,2.3336,214.36,214.26,2.3346]
[1734551420448,2.0453,214.41,214.24,33.00519733]
[1734551420647,5.50651126,214.42,214.28,33.00519733]
[1734551420849,33.00519733,214.46,214.28,33.00519733]
[1734551421253,5.63593531,214.45,214.28,33.00519733]
[1734551421855,2.3335,214.38,214.32,2.3341]
[1734551422053,5.63593531,214.45,214.28,33.00519733]
[1734551422254,5.63593531,214.45,214.24,33.00519733]
[1734551422455,33.00519733,214.42,214.24,38.61703787]
[1734551422761,33.00519733,214.38,214.2,33.00519733]
[1734551422957,33.00519733,214.38,214.16,6.0]
[1734551422958,33.00519733,214.33,214.16,33.00519733]
[1734551423160,4.1861,214.32,214.17,5.73817412]
[1734551423359,2.1368,214.37,214.17,5.73817412]
[1734551423562,6.3229,214.37,214.17,5.73817412]
[1734551424064,2.3341,214.33,214.25,2.3349]
[1734551424271,33.00519733,214.44,214.25,33.00519733]
[1734551424465,39.32809733,214.44,214.25,33.00519733]
[1734551424763,4.1861,214.44,214.29,33.00519733]
[1734551425161,33.00519733,214.52,214.33,33.00519733]
[1734551425655,2.3329,214.43,214.37,2.3336]
[1734551426065,5.58011931,214.49,214.34,5.5498535]
[1734551426957,33.00519733,214.52,214.34,11.5498535]
[1734551427164,33.00519733,214.56,214.37,33.00519733]
[1734551427759,33.00519733,214.56,214.37,35.33879733]
[1734551427956,33.00519733,214.52,214.37,33.00519733]
[1734551428162,33.00519733,214.56,214.37,33.00519733]
[1734551428356,2.3322,214.5,214.37,33.00519733]
[1734551428559,5.56104667,214.54,214.37,33.00519733]
[1734551428760,5.56104667,214.54,214.4,2.3332]
[1734551428761,2.3325,214.47,214.4,2.3332]
[1734551429159,5.56104667,214.54,214.37,33.00519733]
[1734551429364,2.3331,214.42,214.34,5.5498535]
[1734551429564,33.00519733,214.52,214.34,5.5498535]
[1734551429956,33.00519733,214.52,214.37,2.3336]
[1734551430162,33.00519733,214.52,214.34,5.5498535]
[1734551430359,33.00519733,214.44,214.28,33.00519733]
[1734551430563,33.00519733,214.5,214.26,5.73021274]
[1734551430564,33.00519733,214.4,214.26,5.73021274]
[1734551430760,33.00519733,214.36,214.2,33.00519733]
[1734551430963,2.335,214.24,214.2,5.71340859]
[1734551431159,33.00519733,214.36,214.2,5.71340859]
[1734551431669,33.00519733,214.36,214.16,39.00519733]
[1734551431670,33.00519733,214.36,214.16,33.00519733]
[1734551432368,33.00519733,214.36,214.18,5.51343929]
[1734551432369,5.47759046,214.34,214.18,5.51343929]
[1734551432767,5.47759046,214.34,214.2,33.00519733]
[1734551433267,2.3346,214.28,214.2,33.00519733]
[1734551433468,5.47759046,214.34,214.2,33.00519733]
[1734551433860,7.72441314,214.39,214.24,33.00519733]
[1734551434466,4.1455,214.43,214.24,33.00519733]
[1734551434768,33.00519733,214.36,214.22,5.74]
[1734551435168,33.00519733,214.36,214.18,5.51343929]
[1734551435466,2.3351,214.23,214.18,5.51343929]
[1734551435672,1.984,214.35,214.18,5.51343929]
[1734551435866,33.00519733,214.4,214.2,33.00519733]
[1734551436970,2.3348,214.26,214.21,2.3352]
[1734551437170,33.00519733,214.36,214.18,5.51343929]
[1734551438070,2.335,214.25,214.18,7.84903929]
[1734551438270,33.00519733,214.32,214.18,5.51343929]
[1734551438463,1.9865,214.31,214.18,5.51343929]
[1734551438666,33.00519733,214.28,214.09,33.00519733]
[1734551439468,33.00519733,214.24,214.09,5.54959951]
[1734551439969,2.3358,214.16,214.05,33.00519733]
[1734551440272,2.3358,214.16,214.06,5.74307281]
[1734551440470,2.3358,214.16,214.04,2.3372]
[1734551440773,2.3358,214.16,214.15,28.16329]
[1734551440774,35.34099733,214.16,214.15,28.16329]
[1734551440966,35.34099733,214.16,214.01,5.56081535]
[1734551440967,2.337,214.06,214.01,5.56081535]
[1734551441270,33.00519733,214.08,213.91,33.00519733]
[1734551441474,33.00519733,214.08,213.89,8.0988]
[1734551441665,33.00519733,214.08,213.89,5.76]
[1734551442073,2.3379,213.97,213.9,2.3386]
[1734551442267,33.00519733,214.08,213.92,5.6219417]
[1734551442474,33.00519733,214.12,213.92,5.6219417]
[1734551442668,33.00519733,214.16,213.95,33.00519733]
[1734551443071,33.00519733,214.16,213.96,2.1554]
[1734551443268,2.3367,214.08,213.96,6.1669]
[1734551443470,33.00519733,214.16,213.96,6.1669]
[1734551444075,33.00519733,214.16,213.99,33.00519733]
[1734551444275,33.00519733,214.16,213.99,38.76519733]
[1734551445170,2.3366,214.09,213.99,38.76519733]
[1734551445377,5.76,214.17,213.99,38.76519733]
[1734551445578,5.55632901,214.19,213.99,38.76519733]
[1734551445774,5.55632901,214.19,214.05,2.337]
[1734551445978,5.55632901,214.19,214.06,2.0069]
[1734551446175,2.3363,214.12,214.06,2.0069]
[1734551446382,5.55632901,214.19,214.06,2.0069]
[1734551446778,33.00519733,214.16,214.06,2.0069]
[1734551447378,5.55632901,214.19,214.06,2.0069]
[1734551447573,5.55632901,214.19,213.99,33.00519733]
[1734551447877,33.00519733,214.12,213.97,2.0918]
[1734551448283,2.3368,214.08,213.97,7.6735073]
[1734551448481,1.9857,214.16,213.97,7.6735073]
[1734551448687,1.9857,214.16,213.99,33.00519733]
[1734551448882,2.3363,214.11,213.99,33.00519733]
[1734551449187,33.00519733,214.03,213.83,5.65549184]
[1734551449391,2.3389,213.88,213.86,1.8118]
[1734551449786,33.00519733,213.98,213.86,1.8118]
[1734551450578,2.3388,213.89,213.86,1.8118]
[1734551450778,38.65059208,213.98,213.86,1.8118]
[1734551451183,2.3389,213.88,213.86,1.8118]
[1734551451577,2.3395,213.83,213.69,33.00519733]
[1734551451777,33.00519733,213.89,213.74,2.0232]
[1734551452382,33.00519733,213.89,213.78,2.34]
[1734551452779,33.00519733,213.89,213.74,2.0232]
[1734551453179,33.00519733,213.85,213.74,2.0232]
[1734551453486,33.00519733,213.81,213.7,1.8118]
[1734551453882,33.00519733,213.85,213.7,1.8118]
[1734551454189,5.5,213.91,213.7,1.8118]
[1734551454190,33.00519733,213.89,213.7,1.8118]